fUSD/lending_fUSD_20260122
["ID","MTS","AMOUNT","RATE_DAILY","PERIOD"]
[403053431,1769105443480,-2222.99184241,0.00027064,2]
[403053432,1769105443490,-3680.88,0.00027123,2]
[403053433,1769105443499,-150.0,0.00027123,2]
[403053434,1769105443508,-1000.0,0.00027155,2]
[403053435,1769105443517,-150.33,0.00027169,30]
[403053436,1769105443526,-1101.0,0.00027236,2]
[403053437,1769105443536,-166.66,0.00027271,2]
[403053438,1769105443545,-238.1980547,0.0002737,2]
[403053439,1769105443555,-4103.62342215,0.0002739,2]
[403053440,1769105443564,-8105.72507762,0.0002739,2]
[403053441,1769105443574,-300.0,0.00027397,2]
[403053442,1769105443583,-518.45,0.00027397,2]
[403053443,1769105443592,-39838.15,0.00027397,2]
[403053444,1769105443602,-1444.97,0.00027397,2]
[403053445,1769105443611,-416.9,0.00027397,2]
[403053446,1769105443621,-500.0,0.00027397,30]
[403053447,1769105443630,-5678.17,0.00027397,2]
[403053448,1769105443642,-1247.68,0.00027397,2]
[403053449,1769105443651,-200.8023968,0.000275,2]
[403053450,1769105443661,-548.54648125,0.000275,2]
[403053451,1769105443670,-3290.30651315,0.00027552,2]
[403053452,1769105443680,-3128.71369645,0.00027612,5]
[403053453,1769105443690,-1203.8,0.00027637,2]
[403053454,1769105443700,-1957.0,0.000279,2]
[403053455,1769105443709,-46819.2794493,0.00028,2]
[403053456,1769105443722,-490.0,0.00028,2]
[403053460,1769105445495,-23883.09300294,0.00028,2]
[403053461,1769105445505,-33304.29901899,0.00028,2]
[403053462,1769105445603,-17462.47176388,0.00028,2]
[403053463,1769105445612,-160.0,0.00028,2]
[403053464,1769105445621,-271.43874713,0.00028,2]
[403053465,1769105445630,-5886.67152911,0.00028257,2]
[403053466,1769105445641,-204.07466104,0.00028305,2]
[403053467,1769105445650,-5190.63968031,0.000285,2]
[403053468,1769105445659,-1101.0,0.0002867,5]
[403053469,1769105445668,-200.0,0.00028783,2]
[403053470,1769105445679,-1813.28810664,0.00028918,2]
[403053471,1769105445690,-3495.83514778,0.00028918,2]
[403053472,1769105445702,-322.8916,0.00028918,2]
[403053473,1769105445715,-3109.22514558,0.00028918,2]
[403053474,1769105445724,-1000.0,0.00029041,2]
[403053475,1769105445733,-2441.0,0.00029229,2]
[403053476,1769105445742,-4828.0,0.00029229,2]
[403053477,1769105445750,-6565.0,0.00029229,2]
[403053478,1769105445759,-152.29,0.0002924,2]
[403053479,1769105445768,-615.0,0.0002925,2]
[403053480,1769105445778,-3474.0,0.0002925,2]
[403053481,1769105445787,-1407.0,0.0002925,2]
[403053482,1769105445797,-184.0,0.0002925,2]
[403053483,1769105445806,-1268.0,0.0002925,2]
[403053484,1769105445816,-1000.0,0.00029315,2]
[403053485,1769105445825,-4512.51345584,0.00029473,2]
[403053486,1769105445836,-5480.06848786,0.00029473,2]
[403053487,1769105445845,-359.23644007,0.00029565,2]
[403053488,1769105445854,-12742.3814732,0.00029575,2]
[403053489,1769105445863,-1000.0,0.00029589,2]
[403053490,1769105445872,-150.0,0.00029589,2]
[403053491,1769105445881,-213.69309799,0.0002961,14]
[403053492,1769105445891,-1000.0,0.00029624,2]
[403053493,1769105445900,-1000.0,0.00029863,2]
[403053494,1769105445909,-150.0,0.00029899,20]
[403053495,1769105445919,-4562.75061915,0.000299,2]
[403053496,1769105445938,-7650.1052398,0.000299,2]
[403053497,1769105445952,-362.15086289,0.000299,2]
[403053499,1769105445992,-5038.13405782,0.000299,2]
[403053500,1769105446007,-4491.08217948,0.000299,2]
[403053501,1769105446018,-3016.57165071,0.000299,2]
[403053502,1769105446029,-1896.49,0.000299,2]
[403053503,1769105446040,-888.0,0.000299,2]
[403053527,1769106157227,-5000.0,0.00015699,2]
[403053540,1769106422880,262.55520896,0.000153,2]
[403053569,1769106631522,-504.28373524,0.00015799,2]
[403053571,1769106631531,-251.71572117,0.000166,2]
[403053572,1769106631540,-164.8,0.00016712,2]
[403053573,1769106631550,-53.37939203,0.00017268,2]
[403053574,1769106631561,-196.62060797,0.00017268,2]
[403053575,1769106631570,-300.0,0.00017268,2]
[403053576,1769106631579,-250.0,0.00017269,2]
[403053577,1769106631588,-120.67404538,0.00017269,2]
[403053578,1769106631606,-1077.12332908,0.00017269,2]
[403053579,1769106631617,-311.245,0.00017269,2]
[403053580,1769106631628,-588.77586808,0.00017269,2]
[403053581,1769106631643,-402.18175746,0.00017269,2]
[403053582,1769106631652,-600.0,0.00017269,2]
[403053583,1769106631661,-500.0,0.00017673,2]
[403053584,1769106631671,-3304.11822254,0.000178,2]
[403053585,1769106631700,-4666.57703931,0.000178,2]
[403053586,1769106631711,-756.71092669,0.000178,2]
[403053587,1769106631721,-1640.59653455,0.000178,2]
[403053588,1769106631732,-580.36061433,0.000178,2]
[403053589,1769106631743,-770.50483516,0.000178,2]
[403053590,1769106631754,-339.75260614,0.000178,2]
[403053591,1769106631768,-15649.71202783,0.000178,2]
[403053592,1769106631783,-2073.29589676,0.000178,2]
[403053593,1769106631794,-276.65889505,0.000178,2]
[403053594,1769106631805,-1468.67056078,0.000178,2]
[403053655,1769106637588,-500.0,0.00017799,2]
[403053656,1769106637598,-179.19348032,0.00017799,2]
[403053661,1769106637883,-281.93128345,0.00017799,2]
[403053664,1769106637911,-43.97079626,0.00017799,2]
[403053672,1769106637978,-456.02920374,0.00017799,2]
[403053674,1769106637990,-500.0,0.00017799,2]
[403053676,1769106637999,-398.03840797,0.00017799,2]
[403053678,1769106638009,-500.0,0.00017799,2]
[403053679,1769106638019,-77.38986183,0.00017799,2]
[403053682,1769106638031,-422.61013817,0.00017799,2]
[403053683,1769106638041,-158.52998863,0.00017799,2]
[403053686,1769106638057,-341.47001137,0.00017799,2]
[403053688,1769106638067,-500.0,0.00017799,2]
[403053690,1769106638076,-622.09674481,0.00017799,2]
[403053692,1769106638085,-500.0,0.00017799,2]
[403053694,1769106638095,-500.0,0.00017799,2]
[403053696,1769106638104,-500.0,0.00017799,2]
[403053698,1769106638113,-500.0,0.00017799,2]
[403053700,1769106638121,-500.0,0.00017799,2]
[403053702,1769106638131,-500.0,0.00017799,2]
[403053704,1769106638140,-500.0,0.00017799,2]
[403053706,1769106638150,-500.0,0.00017799,2]
[403053708,1769106638158,-500.0,0.00017799,2]
[403053710,1769106638168,-500.0,0.00017799,2]
[403053711,1769106638177,-500.0,0.00017799,2]
[403053712,1769106638186,-500.0,0.00017799,2]
[403053713,1769106638196,-500.0,0.00017799,2]
[403053714,1769106638205,-500.0,0.00017799,2]
[403053715,1769106638214,-500.0,0.00017799,2]
[403053716,1769106638224,-500.0,0.00017799,2]
[403053717,1769106638234,-500.0,0.00017799,2]
[403053718,1769106638242,-500.0,0.00017799,2]
[403053719,1769106638252,-500.0,0.00017799,2]
[403053720,1769106638262,-500.0,0.00017799,2]
[403053721,1769106638271,-500.0,0.00017799,2]
[403053722,1769106638280,-421.79711472,0.00017799,2]
[403053723,1769106638289,-500.0,0.00017799,2]
[403053724,1769106638299,-500.0,0.00017799,2]
[403053725,1769106638308,-500.0,0.00017799,2]
[403053726,1769106638318,-500.0,0.00017799,2]
[403053727,1769106638327,-500.0,0.00017799,2]
[403053728,1769106638335,-500.0,0.00017799,2]
[403053729,1769106638344,-500.0,0.00017799,2]
[403053730,1769106638353,-500.0,0.00017799,2]
[403053731,1769106638362,-500.0,0.00017799,2]
[403053732,1769106638371,-500.0,0.00017799,2]
[403053733,1769106638381,-500.0,0.00017799,2]
[403053734,1769106638392,-500.0,0.00017799,2]
[403053736,1769106638401,-500.0,0.00017799,2]
[403053738,1769106638410,-500.0,0.00017799,2]
[403053740,1769106638419,-500.0,0.00017799,2]
[403053742,1769106638429,-500.0,0.00017799,2]
[403053744,1769106638438,-947616.47124086,0.000178,2]
[403053746,1769106638447,-550.0,0.00017899,2]
[403053748,1769106638457,-2482.63707895,0.00017899,2]
[403053750,1769106638466,-174.92113808,0.000179,2]
[403053752,1769106638474,-4387.35975059,0.000179,2]
[403053754,1769106638484,-618.85284266,0.000179,2]
[403053756,1769106638493,-260.47663316,0.000179,2]
[403053758,1769106638502,-43945.34384307,0.000179,2]
[403053760,1769106638515,-20206.00754482,0.000179,2]
[403053762,1769106638524,-23500.03,0.000179,2]
[403053764,1769106638533,-2544.21115616,0.000179,2]
[403053766,1769106638542,-500.0,0.00017973,2]
[403053768,1769106638551,-150.0,0.00017973,2]
[403053770,1769106638561,-334.64,0.00017989,3]
[403053772,1769106638570,-1092.11315011,0.0001799,2]
[403053774,1769106638579,-1092.11315011,0.0001799,2]
[403053776,1769106638589,-1092.11315011,0.0001799,2]
[403053778,1769106638599,-500.0,0.00017999,2]
[403053780,1769106638608,-300.0,0.00017999,2]
[403053782,1769106638617,-11866.44539761,0.00017999,2]
[403053785,1769106638628,-300.0,0.00017999,2]
[403053787,1769106638637,-666.0,0.00017999,2]
[403053789,1769106638647,-1209.65561051,0.00017999,5]
[403053790,1769106638656,-2512457.45948402,0.00018,2]
[403053811,1769106640027,-360.874,0.00018,2]
[403053812,1769106640038,-6132957.85071498,0.00018,2]
[403053813,1769106640051,-4247.0,0.00018,2]
[403053814,1769106640072,-6927.96445026,0.00018,2]
[403053821,1769106640223,-763.45759774,0.000179,2]
[403053838,1769106642675,-236.54240226,0.000179,2]
[403053840,1769106642684,-132.31738749,0.00017999,2]
[403053874,1769106645635,-651.0,0.000178,2]
[403053875,1769106645705,-4617.17964723,0.000178,2]
[403053876,1769106645714,-367.68261251,0.00017999,2]
[403053877,1769106645723,-2740.68434026,0.00018,2]
[403053878,1769106645735,-15710.44316695,0.00018,2]
[403053879,1769106645746,-33668.86740065,0.00018,2]
[403053880,1769106645757,-311.11452737,0.00018,2]
[403053881,1769106645905,-264.926,0.00018,2]
[403053882,1769106645917,-14842.50000005,0.00018,2]
[403053883,1769106645959,-4090.33797997,0.00018,2]
[403053884,1769106645975,-93807.00916145,0.00018,2]
[403053903,1769107164825,172.46,0.000156,2]
[403053904,1769107165875,172.46,0.00015,2]
[403053905,1769107166985,480.92,0.00015,2]
[403053916,1769107831705,-329.60415809,0.00016463,2]
[403053917,1769107831714,-151.0,0.00016623,2]
[403053918,1769107831723,-1147.00046573,0.00016729,2]
[403053921,1769107838116,5950.87,0.00014023,2]
[403053938,1769107838279,-914.24494554,0.00016729,2]
[403053943,1769107838315,-17.31458873,0.00016729,2]
[403053945,1769107838324,-219.46627378,0.00016818,2]
[403053946,1769107838333,-403.61661377,0.00016853,2]
[403053949,1769107838346,-596.38338623,0.00016853,2]
[403053951,1769107838356,-241.19415602,0.00016915,2]
[403053953,1769107838367,-573.67116563,0.00016915,2]
[403053958,1769107838403,-963.45467835,0.00016915,2]
[403053960,1769107838412,-1500.0,0.00016918,2]
[403053962,1769107838421,-2530.66,0.00016935,2]
[403053964,1769107838430,-152.98,0.00017011,2]
[403053966,1769107838440,-150.0,0.00017076,2]
[403053967,1769107838449,-806.94,0.00017079,2]
[403053969,1769107838459,-200.0,0.00017118,2]
[403053971,1769107838468,-478.43,0.0001712,2]
[403053974,1769107838477,-762.8,0.00017173,2]
[403053976,1769107838487,-219.46627378,0.00017259,2]
[403053978,1769107838496,-502.71264906,0.00017673,2]
[403053980,1769107838505,-500.0,0.00017673,2]
[403053982,1769107838516,-502.14924214,0.00017673,2]
[403053983,1769107838525,-219.46627378,0.000177,2]
[403053985,1769107838534,-151.0,0.00017786,2]
[403053988,1769107838543,-2482.63707895,0.00017787,2]
[403053990,1769107838553,-500.0,0.00017788,2]
[403053992,1769107838562,-595.27213064,0.00017788,2]
[403053993,1769107838571,-197.35189841,0.00017788,2]
[403053995,1769107838580,-500.0,0.00017788,2]
[403053997,1769107838590,-500.0,0.00017788,2]
[403054000,1769107838599,-538.86265601,0.00017788,2]
[403054002,1769107838608,-228.62688558,0.00017788,2]
[403054003,1769107838618,-500.0,0.00017788,2]
[403054006,1769107838627,-1000000.0,0.00017789,2]
[403054008,1769107838637,-550.0,0.00017799,2]
[403054010,1769107838646,-1319.30872248,0.000178,2]
[403054012,1769107838655,-5881.65475074,0.000178,2]
[403054014,1769107838664,-58397.8885,0.000178,2]
[403054016,1769107838674,-206.2842809,0.000178,2]
[403054018,1769107838683,-9732.96957127,0.000178,2]
[403054020,1769107838692,-206.28428088,0.0001784,2]
[403054022,1769107838701,-206.28428088,0.0001788,2]
[403054024,1769107838710,-4554.0788869,0.00017889,2]
[403054026,1769107838718,-200.0,0.00017889,2]
[403054028,1769107838727,-151.0,0.00017889,2]
[403054030,1769107838737,-151.0,0.00017889,2]
[403054031,1769107838747,-151.0,0.00017889,2]
[403054034,1769107838756,-151.0,0.00017889,2]
[403054035,1769107838766,-151.0,0.00017889,2]
[403054038,1769107838775,-151.0,0.00017889,2]
[403054040,1769107838784,-151.0,0.00017889,2]
[403054042,1769107838794,-151.0,0.00017889,2]
[403054043,1769107838803,-151.0,0.00017889,2]
[403054044,1769107838812,-151.0,0.00017889,2]
[403054045,1769107838821,-151.0,0.00017889,2]
[403054046,1769107838831,-334.64,0.0001789,3]
[403054047,1769107838840,-391.38,0.00017898,2]
[403054048,1769107838850,-500.0,0.00017898,2]
[403054049,1769107838859,-500.0,0.00017898,2]
[403054050,1769107838869,-500.0,0.00017898,2]
[403054051,1769107838878,-500.0,0.00017898,2]
[403054052,1769107838887,-500.0,0.00017899,2]
[403054053,1769107838897,-290.90289667,0.00017899,2]
[403054054,1769107838906,-2419.582,0.00017899,2]
[403054055,1769107838916,-500.0,0.00017899,2]
[403054056,1769107838925,-231.5,0.00017899,2]
[403054057,1769107838934,-500.0,0.00017899,2]
[403054058,1769107838944,-500.0,0.00017899,2]
[403054059,1769107838953,-500.0,0.00017899,2]
[403054060,1769107838963,-500.0,0.00017899,2]
[403054061,1769107838973,-500.0,0.00017899,2]
[403054062,1769107838983,-23500.03,0.000179,2]
[403054063,1769107838992,-359.8323642,0.000179,2]
[403054064,1769107839002,-363.87082392,0.000179,2]
[403054065,1769107839012,-260.47663316,0.000179,2]
[403054066,1769107839022,-3983.39418368,0.000179,2]
[403054068,1769107839031,-275.04718254,0.000179,2]
[403054071,1769107839040,-1271.73137014,0.0001797,2]
[403054073,1769107839051,-500.0,0.00017973,2]
[403054074,1769107839060,-150.0,0.00017973,2]
[403054076,1769107839070,-478.43,0.00017976,2]
[403054078,1769107839080,-500.0,0.00017979,2]
[403054081,1769107839090,-209248.0276504,0.0001798,2]
[403054082,1769107839100,-26362.9622668,0.0001798,2]
[403054085,1769107839111,-391.6474504,0.0001798,2]
[403054087,1769107839121,-2843.2096188,0.0001798,2]
[403054089,1769107839132,-882.2130654,0.0001798,2]
[403054091,1769107839142,-221.54570433,0.00017982,2]
[403054093,1769107839153,-1271.73137014,0.0001799,2]
[403054095,1769107839163,-151.0,0.00017997,2]
[403054097,1769107839173,-178.331615,0.00017997,2]
[403054099,1769107839182,-1209.65561051,0.00017999,5]
[403054100,1769107839192,-231.19421172,0.00017999,2]
[403054102,1769107839203,-500.0,0.00017999,2]
[403054105,1769107839213,-500.0,0.00017999,2]
[403054107,1769107839224,-486.66435485,0.00017999,2]
[403054108,1769107839234,-500.0,0.00017999,2]
[403054111,1769107839244,-602.50898057,0.00017999,2]
[403054113,1769107839255,-475.15139412,0.00017999,2]
[403054115,1769107839267,-505.56624435,0.00017999,2]
[403054117,1769107839277,-500.0,0.00017999,2]
[403054119,1769107839287,-155.0,0.00017999,2]
[403054121,1769107839297,-614.97964183,0.00017999,2]
[403054123,1769107839307,-500.0,0.00017999,2]
[403054125,1769107839321,-500.0,0.00017999,2]
[403054127,1769107839330,-500.0,0.00017999,2]
[403054129,1769107839340,-500.0,0.00017999,2]
[403054131,1769107839349,-500.0,0.00017999,2]
[403054133,1769107839361,-500.0,0.00017999,2]
[403054135,1769107839370,-500.0,0.00017999,2]
[403054137,1769107839379,-500.0,0.00017999,2]
[403054139,1769107839390,-500.0,0.00017999,2]
[403054141,1769107839399,-2427724.58112009,0.00018,2]
[403054143,1769107839408,-150.0,0.00018,7]
[403054145,1769107839417,-41378.14398293,0.00018,2]
[403054147,1769107839426,-64120.44002469,0.00018,2]
[403054149,1769107839439,-476.81295156,0.00018,2]
[403054274,1769107840528,-500.0,0.00017788,2]
[403054276,1769107840541,-500.0,0.00017788,2]
[403054278,1769107840550,-500.0,0.00017788,2]
[403054280,1769107840559,-500.0,0.00017788,2]
[403054282,1769107840569,-500.0,0.00017788,2]
[403054284,1769107840578,-500.0,0.00017788,2]
[403054286,1769107840587,-500.0,0.00017788,2]
[403054288,1769107840596,-78.17345405,0.00017788,2]
[403054291,1769107840607,-421.82654595,0.00017788,2]
[403054294,1769107840617,-500.0,0.00017788,2]
[403054298,1769107840627,-500.0,0.00017788,2]
[403054300,1769107840636,-500.0,0.00017788,2]
[403054302,1769107840645,-500.0,0.00017788,2]
[403054304,1769107840654,-500.0,0.00017788,2]
[403054306,1769107840664,-500.0,0.00017788,2]
[403054308,1769107840673,-500.0,0.00017788,2]
[403054310,1769107840683,-394.81041228,0.00017788,2]
[403054311,1769107840691,-500.0,0.00017788,2]
[403054313,1769107840701,-500.0,0.00017788,2]
[403054315,1769107840710,-500.0,0.00017788,2]
[403054318,1769107840719,-192.78336165,0.00017788,2]
[403054320,1769107840729,-500.0,0.00017788,2]
[403054322,1769107840738,-500.0,0.00017788,2]
[403054324,1769107840747,-500.0,0.00017788,2]
[403054326,1769107840757,-110.11110246,0.00017788,2]
[403054328,1769107840770,-389.88889754,0.00017788,2]
[403054330,1769107840779,-500.0,0.00017788,2]
[403054332,1769107840788,-500.0,0.00017788,2]
[403054334,1769107840798,-500.0,0.00017788,2]
[403054336,1769107840807,-500.0,0.00017788,2]
[403054338,1769107840816,-500.0,0.00017788,2]
[403054340,1769107840825,-500.0,0.00017788,2]
[403054341,1769107840834,-500.0,0.00017788,2]
[403054343,1769107840843,-500.0,0.00017788,2]
[403054345,1769107840852,-500.0,0.00017788,2]
[403054347,1769107840862,-500.0,0.00017788,2]
[403054349,1769107840872,-2226.22622607,0.00018,2]
[403054351,1769107840883,-303.028913,0.00018,2]
[403054352,1769107840895,-9347.2832205,0.00018,2]
[403054354,1769107840917,-631.42996771,0.00018,2]
[403054369,1769107843066,-867.6325536,0.00018,2]
[403054370,1769107843171,-638.0386,0.00018,2]
[403054371,1769107843184,-299.88000001,0.00018,2]
[403054377,1769107845741,-151.0,0.00016737,2]
[403054378,1769107845750,-293.2268709,0.000179,3]
[403054379,1769107845759,-315.40009316,0.00018,2]
[403054380,1769107845794,-3589.4,0.00018,2]
[403054381,1769107845918,-371946.409201,0.00018,2]
[403054382,1769107845927,-554.98273767,0.00018028,2]
[403054383,1769107845936,-166.66,0.00018051,2]
[403054384,1769107845945,-500.0,0.00018155,2]
[403054385,1769107845954,-391.38,0.00018172,2]
[403054386,1769107845963,-500.0,0.00018221,2]
[403054387,1769107845972,-178.65,0.00018255,2]
[403054388,1769107845981,-166.66,0.00018431,2]
[403054389,1769107845990,-391.38,0.00018446,2]
[403054390,1769107846000,-9732.96957126,0.00018581,2]
[403054391,1769107846009,-391.38,0.0001872,2]
[403054392,1769107846020,-152.29,0.000188,2]
[403054393,1769107846030,-152.29,0.000188,2]
[403054394,1769107846039,-152.29,0.000188,2]
[403054395,1769107846048,-152.29,0.000188,2]
[403054396,1769107846058,-152.29,0.000188,2]
[403054397,1769107846067,-152.29,0.000188,2]
[403054398,1769107846076,-152.29,0.000188,2]
[403054399,1769107846085,-152.29,0.000188,2]
[403054400,1769107846095,-152.29,0.000188,2]
[403054401,1769107846105,-152.29,0.000188,2]
[403054402,1769107846115,-152.29,0.000188,2]
[403054404,1769107846124,-166.66,0.00018811,2]
[403054406,1769107846133,-478.43,0.00018832,2]
[403054408,1769107846143,-150.84024873,0.000189,2]
[403054410,1769107846152,-1000.0,0.00018959,2]
[403054411,1769107846161,-391.42,0.00018994,2]
[403054412,1769107846171,-5881.65475067,0.00019067,2]
[403054413,1769107846179,-152.98,0.00019137,2]
[403054414,1769107846188,-929.88070976,0.00019178,2]
[403054415,1769107846198,-500.0,0.00019178,2]
[403054416,1769107846206,-500.0,0.00019178,2]
[403054417,1769107846215,-500.0,0.00019178,2]
[403054418,1769107846224,-500.0,0.00019178,2]
[403054420,1769107846233,-500.0,0.00019178,2]
[403054422,1769107846242,-324.0897497,0.00019178,2]
[403054423,1769107846251,-166.66,0.00019191,2]
[403054424,1769107846261,-2270.16772615,0.00019198,2]
[403054425,1769107846270,-469.04,0.00019339,2]
[403054426,1769107846279,-150.99,0.00019339,2]
[403054427,1769107846288,-9732.96957126,0.00019362,2]
[403054428,1769107846297,-166.66,0.00019571,2]
[403054429,1769107846307,-523.0,0.000196,2]
[403054430,1769107846316,-478.43,0.00019688,2]
[403054431,1769107846327,-155.0,0.00019799,2]
[403054432,1769107846336,-166.66,0.00019951,2]
[403054433,1769107846345,-9732.96957126,0.00020143,2]
[403054434,1769107846355,-46689.5459203,0.00020258,2]
[403054435,1769107846364,-5882.3719925,0.00020269,2]
[403054436,1769107846373,-5881.65475067,0.00020333,2]
[403054437,1769107846382,-250.0,0.0002053,2]
[403054438,1769107846392,-478.43,0.00020544,2]
[403054439,1769107846401,-154.13,0.00020548,2]
[403054440,1769107846410,-882.2130654,0.00020675,2]
[403054441,1769107846419,-10417.8458584,0.00020766,2]
[403054442,1769107846428,-1312.5346047,0.0002078,2]
[403054443,1769107846437,-1658.74482666,0.000209,30]
[403054444,1769107846446,-2074.7598977,0.00020924,2]
[403054445,1769107846460,-7658.20967356,0.00020924,2]
[403054446,1769107846469,-503.44696293,0.00020956,2]
[403054447,1769107846478,-445.9653,0.00020963,7]
[403054448,1769107846487,-1000.0,0.00021066,2]
[403054449,1769107846496,-152.98,0.00021264,2]
[403054450,1769107846505,-155.0,0.00021599,2]
[403054451,1769107846515,-5881.65475067,0.000216,2]
[403054452,1769107846524,-9732.96957126,0.00021704,2]
[403054453,1769107846533,-152.29,0.0002199,2]
[403054454,1769107846542,-2174.27131254,0.00022,4]
[403054455,1769107846551,-275.04718251,0.00022124,2]
[403054456,1769107846560,-585.8418,0.000223,2]
[403054457,1769107846569,-38549.86205105,0.000224,2]
[403054458,1769107846661,-4800.91142308,0.000224,2]
[403054459,1769107846682,-73865.50279952,0.000224,2]
[403054477,1769109031966,-782.76857672,0.00016496,2]
[403054478,1769109031978,-595.33473628,0.00016496,2]
[403054479,1769109031986,-195.0,0.00016579,2]
[403054480,1769109031996,-559.27815304,0.00016579,2]
[403054481,1769109032008,-40.72184696,0.00016579,2]
[403054482,1769109032017,-360.59097039,0.00016621,2]
[403054483,1769109032026,-600.0,0.00016722,2]
[403054484,1769109032036,-151.0,0.00016875,2]
[403054485,1769109032045,-151.0,0.00016876,2]
[403054486,1769109032054,-151.0,0.0001688,2]
[403054487,1769109032064,-151.0,0.00016884,2]
[403054488,1769109032073,-151.0,0.00016884,2]
[403054489,1769109032083,-300.0,0.00016899,2]
[403054490,1769109032092,-300.0,0.00016899,2]
[403054491,1769109032101,-1200.0,0.00016899,2]
[403054492,1769109032110,-645.3424181,0.000169,2]
[403054496,1769109032175,-1422.63899574,0.000169,2]
[403054497,1769109032186,-5886.4180569,0.000169,2]
[403054499,1769109032212,-762.32769443,0.000169,2]
[403054500,1769109032222,-133.26963189,0.00017,2]
[403054501,1769109032254,-116.73036811,0.00017,2]
[403054502,1769109032263,-310.10399236,0.00017398,2]
[403054503,1769109032275,-69.88600764,0.00017398,2]
[403054505,1769109032284,-389.36765565,0.00017678,2]
[403054507,1769109038014,-453.25016158,0.00017678,2]
[403054508,1769109038029,-1015.83804948,0.00017678,2]
[403054509,1769109038040,-554.83835335,0.00017678,2]
[403054510,1769109038052,-572.46701454,0.00017678,2]
[403054511,1769109038064,-5778.20325848,0.00017678,2]
[403054512,1769109038083,-20345.24128045,0.00017678,2]
[403054660,1769109040228,-972.88,0.00017678,2]
[403054670,1769109040307,-396.71618048,0.00017678,2]
[403054673,1769109040326,-969521.19804599,0.00017678,2]
[403054675,1769109040335,-151.0,0.00017699,2]
[403054677,1769109040344,-500.0,0.00017699,2]
[403054679,1769109040353,-500.0,0.00017699,2]
[403054680,1769109040363,-500.0,0.00017699,2]
[403054683,1769109040373,-500.0,0.00017699,2]
[403054685,1769109040382,-500.0,0.00017699,2]
[403054687,1769109040391,-500.0,0.00017699,2]
[403054689,1769109040401,-500.0,0.00017699,2]
[403054691,1769109040410,-500.0,0.00017699,2]
[403054693,1769109040420,-500.0,0.00017699,2]
[403054695,1769109040429,-500.0,0.00017699,2]
[403054697,1769109040438,-500.0,0.00017699,2]
[403054699,1769109040447,-500.0,0.00017699,2]
[403054701,1769109040456,-500.0,0.00017699,2]
[403054703,1769109040465,-500.0,0.00017699,2]
[403054705,1769109040475,-500.0,0.00017699,2]
[403054707,1769109040485,-500.0,0.00017699,2]
[403054708,1769109040495,-500.0,0.00017699,2]
[403054710,1769109040504,-500.0,0.00017699,2]
[403054712,1769109040514,-500.0,0.00017699,2]
[403054715,1769109040528,-500.0,0.00017699,2]
[403054717,1769109040540,-500.0,0.00017699,2]
[403054719,1769109040549,-500.0,0.00017699,2]
[403054721,1769109040558,-500.0,0.00017699,2]
[403054723,1769109040568,-500.0,0.00017699,2]
[403054726,1769109040577,-500.0,0.00017699,2]
[403054728,1769109040587,-500.0,0.00017699,2]
[403054730,1769109040596,-500.0,0.00017699,2]
[403054732,1769109040605,-500.0,0.00017699,2]
[403054734,1769109040614,-500.0,0.00017699,2]
[403054736,1769109040623,-500.0,0.00017699,2]
[403054738,1769109040632,-500.0,0.00017699,2]
[403054740,1769109040642,-500.0,0.00017699,2]
[403054742,1769109040651,-500.0,0.00017699,2]
[403054744,1769109040660,-500.0,0.00017699,2]